[Event "*** Titled Tuesday Blitz"]
[Site "Chess.com"]
[Date "2020.04.14"]
[Round "2"]
[White "H3nriqueTV"]
[Black "kayrakamer"]
[Result "0-1"]
[WhiteElo "2224"]
[BlackElo "2576"]
[TimeControl "180+1"]
[EndTime "10:17:43 PDT"]
[Termination "kayrakamer won by resignation"]

1. b3 {[%clk 0:02:56.1]} 1... Nf6 {[%clk 0:02:59.8]} 2. Bb2 {[%clk 0:02:54.5]}
2... g6 {[%clk 0:03:00.7]} 3. e4 {[%clk 0:02:54]} 3... d6 {[%clk 0:02:57.8]} 4.
d3 {[%clk 0:02:54.2]} 4... Bg7 {[%clk 0:02:58.1]} 5. f4 {[%clk 0:02:54.5]} 5...
O-O {[%clk 0:02:58]} 6. Nf3 {[%clk 0:02:54.8]} 6... Nc6 {[%clk 0:02:56.3]} 7.
Be2 {[%clk 0:02:55.1]} 7... Bg4 {[%clk 0:02:55.6]} 8. O-O {[%clk 0:02:54.4]}
8... a5 {[%clk 0:02:51.5]} 9. a4 {[%clk 0:02:48.6]} 9... Qd7 {[%clk 0:02:41.6]}
10. Qe1 {[%clk 0:02:37.6]} 10... Bxf3 {[%clk 0:02:38.3]} 11. Bxf3 {[%clk
0:02:37.5]} 11... e5 {[%clk 0:02:39.2]} 12. f5 {[%clk 0:02:35.4]} 12... Nd4
{[%clk 0:02:33.1]} 13. Bxd4 {[%clk 0:02:31.1]} 13... exd4 {[%clk 0:02:34]} 14.
Nd2 {[%clk 0:02:29.2]} 14... Rae8 {[%clk 0:02:31.3]} 15. Qg3 {[%clk 0:02:21.3]}
15... gxf5 {[%clk 0:02:17.8]} 16. exf5 {[%clk 0:02:20.9]} 16... Kh8 {[%clk
0:02:15.1]} 17. Ne4 {[%clk 0:02:13.4]} 17... Rg8 {[%clk 0:02:04.3]} 18. Qh3
{[%clk 0:02:09.5]} 18... Nxe4 {[%clk 0:01:58.8]} 19. Bxe4 {[%clk 0:02:05.7]}
19... d5 {[%clk 0:01:55.5]} 20. Bf3 {[%clk 0:02:03.2]} 20... Re3 {[%clk
0:01:53.2]} 21. Qh5 {[%clk 0:01:58.3]} 21... Bf6 {[%clk 0:01:43.5]} 22. Rae1
{[%clk 0:01:49.5]} 22... c6 {[%clk 0:01:36.3]} 23. Qh6 {[%clk 0:01:39.1]} 23...
Bg5 {[%clk 0:01:25.1]} 24. Qh5 {[%clk 0:01:35.5]} 24... Qe7 {[%clk 0:01:23.7]}
25. Rxe3 {[%clk 0:01:29.1]} 25... dxe3 {[%clk 0:01:22]} 26. Re1 {[%clk
0:01:16.8]} 26... Qb4 {[%clk 0:01:10.8]} 27. Re2 {[%clk 0:01:09.1]} 27... Qc3
{[%clk 0:01:08.5]} 28. h4 {[%clk 0:01:06.4]} 28... Bf4 {[%clk 0:01:03.1]} 29. g4
{[%clk 0:00:58.5]} 29... Qf6 {[%clk 0:00:43.7]} 30. Kg2 {[%clk 0:00:36.9]} 30...
Qe7 {[%clk 0:00:30]} 31. c4 {[%clk 0:00:33.9]} 31... d4 {[%clk 0:00:29]} 32. Be4
{[%clk 0:00:32.7]} 32... Qf6 {[%clk 0:00:25.2]} 33. Kh3 {[%clk 0:00:30.5]} 33...
Qe5 {[%clk 0:00:19.5]} 34. f6 {[%clk 0:00:28.8]} 34... Qxh5 {[%clk 0:00:19]} 35.
gxh5 {[%clk 0:00:29.2]} 35... Rg3+ {[%clk 0:00:18.5]} 36. Kh2 {[%clk 0:00:29.7]}
36... Rg4+ {[%clk 0:00:15]} 37. Kh3 {[%clk 0:00:30]} 37... Rg3+ {[%clk
0:00:12.7]} 38. Kh2 {[%clk 0:00:30.2]} 38... Rg6+ {[%clk 0:00:12]} 39. Kh3
{[%clk 0:00:28.4]} 39... Rxf6 {[%clk 0:00:12.3]} 40. Rg2 {[%clk 0:00:28]} 40...
Bh6 {[%clk 0:00:09.9]} 41. Re2 {[%clk 0:00:20.1]} 41... Rf4 {[%clk 0:00:09.4]}
42. Kg3 {[%clk 0:00:19]} 42... Rxe4 {[%clk 0:00:09.7]} 43. dxe4 {[%clk
0:00:18.9]} 43... d3 {[%clk 0:00:10]} 44. Ra2 {[%clk 0:00:18.8]} 44... d2 {[%clk
0:00:09.4]} 45. Ra1 {[%clk 0:00:17.9]} 45... e2 {[%clk 0:00:09.8]} 46. Kf2
{[%clk 0:00:17.5]} 46... d1=Q {[%clk 0:00:10.2]} 0-1

[Event "*** Titled Tuesday Blitz"]
[Site "Chess.com"]
[Date "2020.04.14"]
[Round "2"]
[White "chenxiaoyuer"]
[Black "AlRayyan2022"]
[Result "0-1"]
[WhiteElo "2066"]
[BlackElo "2632"]
[TimeControl "180+1"]
[EndTime "10:17:44 PDT"]
[Termination "AlRayyan2022 won by checkmate"]

1. e4 {[%clk 0:03:00.9]} 1... c5 {[%clk 0:02:59.7]} 2. Nf3 {[%clk 0:03:00.5]}
2... Nc6 {[%clk 0:02:59.7]} 3. d4 {[%clk 0:02:59.7]} 3... cxd4 {[%clk
0:02:59.2]} 4. Nxd4 {[%clk 0:02:59.1]} 4... Qb6 {[%clk 0:02:59.9]} 5. Nb3 {[%clk
0:02:58]} 5... Nf6 {[%clk 0:03:00.3]} 6. Nc3 {[%clk 0:02:56.3]} 6... e6 {[%clk
0:03:00.8]} 7. Be3 {[%clk 0:02:55.7]} 7... Qc7 {[%clk 0:02:59.9]} 8. a3 {[%clk
0:02:55.6]} 8... a6 {[%clk 0:03:00]} 9. Be2 {[%clk 0:02:52.3]} 9... b5 {[%clk
0:02:59.5]} 10. f4 {[%clk 0:02:48.1]} 10... d6 {[%clk 0:02:56.8]} 11. O-O {[%clk
0:02:47.1]} 11... Bb7 {[%clk 0:02:56.9]} 12. Bf3 {[%clk 0:02:46.4]} 12... Be7
{[%clk 0:02:55.8]} 13. g4 {[%clk 0:02:45.9]} 13... h6 {[%clk 0:02:43.6]} 14. Qe2
{[%clk 0:02:38.3]} 14... Nd7 {[%clk 0:02:34.2]} 15. Rad1 {[%clk 0:02:35.5]}
15... g5 {[%clk 0:02:32.8]} 16. f5 {[%clk 0:02:27.8]} 16... Nde5 {[%clk
0:02:32.5]} 17. Nd4 {[%clk 0:02:22.3]} 17... Nxd4 {[%clk 0:02:17.4]} 18. Bxd4
{[%clk 0:02:20.8]} 18... Bf6 {[%clk 0:01:52.5]} 19. Bg2 {[%clk 0:02:17.5]} 19...
Qe7 {[%clk 0:01:41.2]} 20. h3 {[%clk 0:02:05]} 20... Rc8 {[%clk 0:01:33.4]} 21.
Qf2 {[%clk 0:01:25.5]} 21... O-O {[%clk 0:01:33]} 22. Qg3 {[%clk 0:01:20.6]}
22... Rc4 {[%clk 0:01:29.4]} 23. Be3 {[%clk 0:01:15.7]} 23... Rfc8 {[%clk
0:01:26.8]} 24. Rf2 {[%clk 0:01:14.4]} 24... Rxc3 {[%clk 0:01:09.7]} 25. bxc3
{[%clk 0:01:13.5]} 25... Rxc3 {[%clk 0:01:10.6]} 26. Rdf1 {[%clk 0:01:04.7]}
26... Nc4 {[%clk 0:01:01.5]} 27. fxe6 {[%clk 0:01:03]} 27... Be5 {[%clk
0:01:01]} 28. exf7+ {[%clk 0:00:56.1]} 28... Kf8 {[%clk 0:01:00.8]} 29. Qf3
{[%clk 0:00:52.9]} 29... Nxe3 {[%clk 0:00:54.7]} 30. Re1 {[%clk 0:00:49.5]}
30... Bd4 {[%clk 0:00:35.9]} 31. Kh1 {[%clk 0:00:38.4]} 31... Nxg2 {[%clk
0:00:22.7]} 32. Qxg2 {[%clk 0:00:31.2]} 32... Bxf2 {[%clk 0:00:22.3]} 33. Qxf2
{[%clk 0:00:29.9]} 33... Qe5 {[%clk 0:00:20.6]} 34. Qg2 {[%clk 0:00:24.5]} 34...
Rg3 {[%clk 0:00:18.9]} 35. Qf2 {[%clk 0:00:22.1]} 35... Bxe4+ {[%clk 0:00:17.9]}
36. Rxe4 {[%clk 0:00:20.1]} 36... Qxe4+ {[%clk 0:00:18.1]} 37. Kh2 {[%clk
0:00:20.3]} 37... Rf3 {[%clk 0:00:17.8]} 38. Qa7 {[%clk 0:00:17.6]} 38... Qe2+
{[%clk 0:00:17.6]} 39. Kh1 {[%clk 0:00:16]} 39... Rf1+ {[%clk 0:00:18]} 40. Qg1
{[%clk 0:00:15.9]} 40... Qf3+ {[%clk 0:00:18.4]} 41. Kh2 {[%clk 0:00:15.6]}
41... Rxg1 {[%clk 0:00:19.1]} 42. Kxg1 {[%clk 0:00:15.5]} 42... Qxh3 {[%clk
0:00:19.7]} 43. Kf2 {[%clk 0:00:15.6]} 43... Qxg4 {[%clk 0:00:20.3]} 44. Ke3
{[%clk 0:00:14.9]} 44... Qc4 {[%clk 0:00:21.2]} 45. Kf3 {[%clk 0:00:14.5]} 45...
Qxc2 {[%clk 0:00:21.2]} 46. Kg3 {[%clk 0:00:13.6]} 46... Qb3+ {[%clk 0:00:21.6]}
47. Kg4 {[%clk 0:00:14.2]} 47... Qxa3 {[%clk 0:00:21.9]} 48. Kh5 {[%clk
0:00:15.1]} 48... Kxf7 {[%clk 0:00:21.7]} 49. Kxh6 {[%clk 0:00:14.8]} 49... Kf6
{[%clk 0:00:21.4]} 50. Kh7 {[%clk 0:00:15.6]} 50... Qh3+ {[%clk 0:00:20]} 51.
Kg8 {[%clk 0:00:16.5]} 51... Qh5 {[%clk 0:00:19.8]} 52. Kf8 {[%clk 0:00:14.7]}
52... Qf7# {[%clk 0:00:20.2]} 0-1

[Event "*** Titled Tuesday Blitz"]
[Site "Chess.com"]
[Date "2020.04.14"]
[Round "2"]
[White "garfield_pg"]
[Black "SamuelGhimpu2003"]
[Result "0-1"]
[WhiteElo "2196"]
[BlackElo "2557"]
[TimeControl "180+1"]
[EndTime "10:17:44 PDT"]
[Termination "SamuelGhimpu2003 won by resignation"]

1. d4 {[%clk 0:03:00.9]} 1... Nf6 {[%clk 0:02:59.9]} 2. Nc3 {[%clk 0:03:01.8]}
2... e6 {[%clk 0:02:59.6]} 3. Bg5 {[%clk 0:03:01.9]} 3... d5 {[%clk 0:02:59.6]}
4. e3 {[%clk 0:03:02.2]} 4... c5 {[%clk 0:02:58.3]} 5. f4 {[%clk 0:03:01.9]}
5... Nc6 {[%clk 0:02:56.8]} 6. Nf3 {[%clk 0:03:01.2]} 6... Qb6 {[%clk
0:02:56.8]} 7. Bb5 {[%clk 0:02:59.8]} 7... a6 {[%clk 0:02:52.5]} 8. Bxc6+ {[%clk
0:02:58.3]} 8... bxc6 {[%clk 0:02:53.4]} 9. Na4 {[%clk 0:02:44]} 9... Qa5+
{[%clk 0:02:45.9]} 10. c3 {[%clk 0:02:43.4]} 10... Ne4 {[%clk 0:02:46.3]} 11.
O-O {[%clk 0:02:39]} 11... cxd4 {[%clk 0:02:40.3]} 12. exd4 {[%clk 0:02:36.2]}
12... c5 {[%clk 0:02:39.8]} 13. Ne5 {[%clk 0:02:23.8]} 13... cxd4 {[%clk
0:02:22.6]} 14. cxd4 {[%clk 0:02:09.6]} 14... Bd6 {[%clk 0:02:15.9]} 15. Bh4
{[%clk 0:01:53.8]} 15... O-O {[%clk 0:02:13.7]} 16. Rc1 {[%clk 0:01:45.5]} 16...
f6 {[%clk 0:01:54.8]} 17. Nd3 {[%clk 0:01:08]} 17... Rb8 {[%clk 0:01:54.6]} 18.
Be1 {[%clk 0:01:02.4]} 18... Qd8 {[%clk 0:01:41.7]} 19. b3 {[%clk 0:00:58.1]}
19... Bd7 {[%clk 0:01:36.7]} 20. Nac5 {[%clk 0:00:56.4]} 20... Qe7 {[%clk
0:01:09.2]} 21. Nxd7 {[%clk 0:00:50.5]} 21... Qxd7 {[%clk 0:01:10.1]} 22. Nc5
{[%clk 0:00:48.9]} 22... Nxc5 {[%clk 0:01:04.3]} 23. dxc5 {[%clk 0:00:49.8]}
23... Bc7 {[%clk 0:01:04.5]} 24. b4 {[%clk 0:00:47.6]} 24... e5 {[%clk
0:01:02.2]} 25. fxe5 {[%clk 0:00:47.2]} 25... fxe5 {[%clk 0:01:03.1]} 26. Rxf8+
{[%clk 0:00:46.7]} 26... Rxf8 {[%clk 0:01:04]} 27. c6 {[%clk 0:00:45.6]} 27...
Qf5 {[%clk 0:01:02.9]} 28. Qxd5+ {[%clk 0:00:43.6]} 28... Kh8 {[%clk 0:01:02]}
29. Qf3 {[%clk 0:00:25.5]} 29... Bb6+ {[%clk 0:00:53.5]} 30. Kh1 {[%clk
0:00:20.6]} 30... Qc8 {[%clk 0:00:53.4]} 31. Qe2 {[%clk 0:00:19.7]} 31... Qf5
{[%clk 0:00:52.1]} 32. Bg3 {[%clk 0:00:17.5]} 32... Re8 {[%clk 0:00:45.6]} 33.
h3 {[%clk 0:00:16.4]} 33... a5 {[%clk 0:00:44.5]} 34. b5 {[%clk 0:00:16.2]}
34... h5 {[%clk 0:00:42.1]} 35. Rf1 {[%clk 0:00:15.2]} 35... Qe6 {[%clk
0:00:42.1]} 36. Qxh5+ {[%clk 0:00:14.7]} 36... Kg8 {[%clk 0:00:41.6]} 37. Re1
{[%clk 0:00:13.2]} 37... e4 {[%clk 0:00:41.7]} 38. Qg4 {[%clk 0:00:11.9]} 38...
Qxa2 {[%clk 0:00:39.6]} 39. c7 {[%clk 0:00:11.8]} 39... Qc2 {[%clk 0:00:32.6]}
40. Be5 {[%clk 0:00:06.4]} 40... Kf7 {[%clk 0:00:23.9]} 41. Qxg7+ {[%clk
0:00:05.7]} 41... Ke6 {[%clk 0:00:24.8]} 42. Qf6+ {[%clk 0:00:05.6]} 42... Kd5
{[%clk 0:00:25.7]} 43. Qd6+ {[%clk 0:00:05.1]} 43... Kc4 {[%clk 0:00:26.2]} 44.
c8=Q+ {[%clk 0:00:05.7]} 44... Rxc8 {[%clk 0:00:25.5]} 45. Qc6+ {[%clk 0:00:05]}
45... Rxc6 {[%clk 0:00:23.6]} 46. bxc6 {[%clk 0:00:05.9]} 46... Kd5 {[%clk
0:00:23.9]} 0-1

[Event "*** Titled Tuesday Blitz"]
[Site "Chess.com"]
[Date "2020.04.14"]
[Round "2"]
[White "Sychev_Klementy"]
[Black "Aemulus20"]
[Result "1-0"]
[WhiteElo "2871"]
[BlackElo "2578"]
[TimeControl "180+1"]
[EndTime "10:17:45 PDT"]
[Termination "Sychev_Klementy won on time"]

1. e4 {[%clk 0:02:43]} 1... c5 {[%clk 0:02:59.8]} 2. Nf3 {[%clk 0:02:43.1]} 2...
d6 {[%clk 0:03:00.1]} 3. d4 {[%clk 0:02:43.3]} 3... cxd4 {[%clk 0:03:00.8]} 4.
Nxd4 {[%clk 0:02:43.9]} 4... Nf6 {[%clk 0:03:01.7]} 5. Nc3 {[%clk 0:02:44.5]}
5... a6 {[%clk 0:03:02.1]} 6. Be2 {[%clk 0:02:44.9]} 6... e5 {[%clk 0:03:02.1]}
7. Nb3 {[%clk 0:02:45]} 7... Be7 {[%clk 0:03:02.4]} 8. Be3 {[%clk 0:02:45.4]}
8... O-O {[%clk 0:03:02.5]} 9. g4 {[%clk 0:02:44.9]} 9... Be6 {[%clk 0:02:47.8]}
10. g5 {[%clk 0:02:44.8]} 10... Nfd7 {[%clk 0:02:45.8]} 11. h4 {[%clk
0:02:44.6]} 11... Nc6 {[%clk 0:02:26]} 12. Bg4 {[%clk 0:02:43.2]} 12... Re8
{[%clk 0:01:30.4]} 13. Bxe6 {[%clk 0:02:27.8]} 13... fxe6 {[%clk 0:01:31.3]} 14.
Qg4 {[%clk 0:02:27.5]} 14... Nf8 {[%clk 0:01:31.6]} 15. O-O-O {[%clk 0:02:27.9]}
15... Rc8 {[%clk 0:01:24.5]} 16. g6 {[%clk 0:01:33.3]} 16... Na5 {[%clk
0:01:01.1]} 17. gxh7+ {[%clk 0:01:31.7]} 17... Kh8 {[%clk 0:01:01.2]} 18. Rhg1
{[%clk 0:01:22.1]} 18... Bf6 {[%clk 0:00:55.5]} 19. Kb1 {[%clk 0:00:46.4]} 19...
Nc4 {[%clk 0:00:52.1]} 20. Bh6 {[%clk 0:00:43.5]} 20... Qe7 {[%clk 0:00:51.5]}
21. h5 {[%clk 0:00:41.6]} 21... Nxh7 {[%clk 0:00:46.7]} 22. Bc1 {[%clk 0:00:41]}
22... Na3+ {[%clk 0:00:38.4]} 23. bxa3 {[%clk 0:00:36.4]} 23... Rxc3 {[%clk
0:00:38.8]} 24. h6 {[%clk 0:00:35.5]} 24... g5 {[%clk 0:00:36.5]} 25. Rd2 {[%clk
0:00:28.7]} 25... Rec8 {[%clk 0:00:36.2]} 26. Rgd1 {[%clk 0:00:28.5]} 26... R3c6
{[%clk 0:00:33.9]} 27. a4 {[%clk 0:00:27.2]} 27... b6 {[%clk 0:00:32.5]} 28. Ba3
{[%clk 0:00:26.7]} 28... Qc7 {[%clk 0:00:20.7]} 29. Qxe6 {[%clk 0:00:24.4]}
29... Rxc2 {[%clk 0:00:20.8]} 30. Qxc8+ {[%clk 0:00:18.5]} 30... Qxc8 {[%clk
0:00:21.6]} 31. Rxc2 {[%clk 0:00:18.9]} 31... Qg4 {[%clk 0:00:11.9]} 32. f3
{[%clk 0:00:18.9]} 32... Qe6 {[%clk 0:00:08.6]} 33. Rxd6 {[%clk 0:00:18.8]}
33... Qe8 {[%clk 0:00:06.7]} 34. Rdc6 {[%clk 0:00:19]} 34... Bd8 {[%clk
0:00:05.8]} 35. Rc8 {[%clk 0:00:18.6]} 35... Nf8 {[%clk 0:00:06.2]} 36. Bxf8
{[%clk 0:00:16.5]} 36... Qxf8 {[%clk 0:00:07.1]} 37. Rd2 {[%clk 0:00:16.6]}
37... Qxf3 {[%clk 0:00:05.9]} 38. Rcxd8+ {[%clk 0:00:12.1]} 38... Kh7 {[%clk
0:00:06.8]} 39. R8d6 {[%clk 0:00:11.6]} 39... Qf1+ {[%clk 0:00:05.8]} 40. Kb2
{[%clk 0:00:11.3]} 40... b5 {[%clk 0:00:05.6]} 41. Rc2 {[%clk 0:00:10.7]} 1-0

[Event "*** Titled Tuesday Blitz"]
[Site "Chess.com"]
[Date "2020.04.14"]
[Round "2"]
[White "Eloist"]
[Black "DrBergerBerger"]
[Result "0-1"]
[WhiteElo "2262"]
[BlackElo "2506"]
[TimeControl "180+1"]
[EndTime "10:17:45 PDT"]
[Termination "DrBergerBerger won by resignation"]

1. e4 {[%clk 0:03:00.9]} 1... e6 {[%clk 0:02:58.7]} 2. d4 {[%clk 0:02:59.8]}
2... d5 {[%clk 0:02:58.2]} 3. Nd2 {[%clk 0:02:59.7]} 3... c5 {[%clk 0:02:57.4]}
4. Ngf3 {[%clk 0:02:58.8]} 4... cxd4 {[%clk 0:02:56.8]} 5. Nxd4 {[%clk
0:02:56.9]} 5... Nc6 {[%clk 0:02:55.9]} 6. Bb5 {[%clk 0:02:55.2]} 6... Bd7
{[%clk 0:02:55.6]} 7. Nxc6 {[%clk 0:02:55]} 7... bxc6 {[%clk 0:02:55.4]} 8. Bd3
{[%clk 0:02:54.3]} 8... Bd6 {[%clk 0:02:55.5]} 9. Qe2 {[%clk 0:02:53.5]} 9...
Ne7 {[%clk 0:02:51.7]} 10. O-O {[%clk 0:02:51.9]} 10... Ng6 {[%clk 0:02:47.4]}
11. Nf3 {[%clk 0:02:48]} 11... O-O {[%clk 0:02:35.7]} 12. e5 {[%clk 0:02:41.8]}
12... Bc7 {[%clk 0:02:34.9]} 13. c4 {[%clk 0:02:35]} 13... dxc4 {[%clk
0:01:59.4]} 14. Bxc4 {[%clk 0:02:32]} 14... c5 {[%clk 0:01:59.1]} 15. Bg5 {[%clk
0:02:25.8]} 15... Qb8 {[%clk 0:01:52.7]} 16. Bd3 {[%clk 0:02:01.8]} 16... Bc6
{[%clk 0:01:46.5]} 17. Be4 {[%clk 0:01:49]} 17... Bxe4 {[%clk 0:01:39.7]} 18.
Qxe4 {[%clk 0:01:48.1]} 18... Nxe5 {[%clk 0:01:36.7]} 19. Be7 {[%clk 0:01:34.3]}
19... Nxf3+ {[%clk 0:01:30]} 20. Qxf3 {[%clk 0:01:34.2]} 20... Bxh2+ {[%clk
0:01:20.6]} 21. Kh1 {[%clk 0:01:33]} 21... Re8 {[%clk 0:01:19.7]} 22. Bxc5
{[%clk 0:01:27.7]} 22... Be5 {[%clk 0:01:13.5]} 23. Rab1 {[%clk 0:01:21.2]}
23... Qb5 {[%clk 0:01:07.1]} 24. b4 {[%clk 0:01:11]} 24... a5 {[%clk 0:00:58.3]}
25. Rfe1 {[%clk 0:01:00.5]} 25... Bf6 {[%clk 0:00:56.2]} 26. a3 {[%clk
0:00:51.6]} 26... axb4 {[%clk 0:00:53.2]} 27. axb4 {[%clk 0:00:51.3]} 27... Ra2
{[%clk 0:00:38.6]} 28. Rbd1 {[%clk 0:00:37.3]} 28... Rea8 {[%clk 0:00:37.1]} 29.
Qd3 {[%clk 0:00:35]} 29... Qxd3 {[%clk 0:00:30.4]} 30. Rxd3 {[%clk 0:00:35.9]}
30... Ra1 {[%clk 0:00:30.9]} 31. Rxa1 {[%clk 0:00:26.7]} 31... Rxa1+ {[%clk
0:00:31.8]} 32. Kh2 {[%clk 0:00:26.9]} 32... Rb1 {[%clk 0:00:30.7]} 33. Kg3
{[%clk 0:00:19.9]} 33... h5 {[%clk 0:00:28.7]} 34. Kf3 {[%clk 0:00:19]} 34... g5
{[%clk 0:00:28.2]} 35. Ke2 {[%clk 0:00:12.5]} 35... Kg7 {[%clk 0:00:27.5]} 36.
Kd2 {[%clk 0:00:10.6]} 36... Be5 {[%clk 0:00:16.4]} 37. Kc2 {[%clk 0:00:10.1]}
37... Rb2+ {[%clk 0:00:15.6]} 38. Kc1 {[%clk 0:00:10.1]} 38... Ra2 {[%clk
0:00:15.6]} 39. Rb3 {[%clk 0:00:07.7]} 39... Ra8 {[%clk 0:00:13.1]} 40. b5
{[%clk 0:00:07.6]} 40... Rc8 {[%clk 0:00:13.2]} 41. b6 {[%clk 0:00:07.9]} 41...
Rxc5+ {[%clk 0:00:13.1]} 42. Kb1 {[%clk 0:00:08]} 42... Rc8 {[%clk 0:00:12.6]}
43. b7 {[%clk 0:00:07.8]} 43... Rb8 {[%clk 0:00:12.9]} 0-1

[Event "*** Titled Tuesday Blitz"]
[Site "Chess.com"]
[Date "2020.04.14"]
[Round "2"]
[White "IMinTheWings"]
[Black "MergenKakabaev"]
[Result "0-1"]
[WhiteElo "2181"]
[BlackElo "2443"]
[TimeControl "180+1"]
[EndTime "10:17:46 PDT"]
[Termination "MergenKakabaev won by checkmate"]

1. c4 {[%clk 0:03:00.9]} 1... Nf6 {[%clk 0:02:54.6]} 2. Nc3 {[%clk 0:02:58.1]}
2... g6 {[%clk 0:02:51.4]} 3. e4 {[%clk 0:02:58.1]} 3... d6 {[%clk 0:02:39.3]}
4. d4 {[%clk 0:02:57.7]} 4... Bg7 {[%clk 0:02:26.2]} 5. Be2 {[%clk 0:02:57.7]}
5... O-O {[%clk 0:02:22.7]} 6. Be3 {[%clk 0:02:57.2]} 6... e5 {[%clk 0:02:22.4]}
7. d5 {[%clk 0:02:54.2]} 7... c5 {[%clk 0:02:22]} 8. g4 {[%clk 0:02:52.1]} 8...
Na6 {[%clk 0:02:17.5]} 9. h4 {[%clk 0:02:51]} 9... Nc7 {[%clk 0:02:16.1]} 10. h5
{[%clk 0:02:44.7]} 10... a6 {[%clk 0:02:14.4]} 11. f3 {[%clk 0:02:31.6]} 11...
Bd7 {[%clk 0:02:12.9]} 12. Qd2 {[%clk 0:02:20.1]} 12... Rb8 {[%clk 0:01:59.6]}
13. Bh6 {[%clk 0:02:19.7]} 13... Qe7 {[%clk 0:01:58.5]} 14. Bxg7 {[%clk
0:02:01.8]} 14... Kxg7 {[%clk 0:01:57.5]} 15. Nh3 {[%clk 0:01:34.5]} 15... b5
{[%clk 0:01:48.4]} 16. Ng5 {[%clk 0:01:27.2]} 16... bxc4 {[%clk 0:01:43.5]} 17.
Bxc4 {[%clk 0:01:27.5]} 17... Nb5 {[%clk 0:01:42.6]} 18. Ne2 {[%clk 0:01:18.1]}
18... Nd4 {[%clk 0:01:39.5]} 19. Nxd4 {[%clk 0:01:04.8]} 19... cxd4 {[%clk
0:01:40.1]} 20. hxg6 {[%clk 0:01:05.1]} 20... fxg6 {[%clk 0:01:36.4]} 21. O-O-O
{[%clk 0:00:45]} 21... Rfc8 {[%clk 0:01:15.1]} 22. b3 {[%clk 0:00:42.9]} 22...
Bb5 {[%clk 0:01:08.9]} 23. Rh6 {[%clk 0:00:06.8]} 23... Bxc4 {[%clk 0:01:03.2]}
24. Rdh1 {[%clk 0:00:07.2]} 24... Bxb3+ {[%clk 0:00:30.2]} 25. Kb1 {[%clk
0:00:06.5]} 25... Bxd5+ {[%clk 0:00:25.1]} 26. Ka1 {[%clk 0:00:06.7]} 26... Bg8
{[%clk 0:00:25.6]} 27. Rxg6+ {[%clk 0:00:03.7]} 27... hxg6 {[%clk 0:00:20.6]}
28. Ne6+ {[%clk 0:00:04.1]} 28... Qxe6 {[%clk 0:00:15.3]} 29. Qh6+ {[%clk
0:00:05]} 29... Kf7 {[%clk 0:00:15.2]} 30. Rc1 {[%clk 0:00:05.1]} 30... Ke7
{[%clk 0:00:12.7]} 31. Qg7+ {[%clk 0:00:04.7]} 31... Bf7 {[%clk 0:00:13]} 32.
Rc2 {[%clk 0:00:02.9]} 32... Rxc2 {[%clk 0:00:12.4]} 33. Qxf6+ {[%clk
0:00:03.4]} 33... Kxf6 {[%clk 0:00:12.4]} 34. g5+ {[%clk 0:00:03.9]} 34... Kxg5
{[%clk 0:00:12.8]} 35. f4+ {[%clk 0:00:04.5]} 35... Kxf4 {[%clk 0:00:13.2]} 36.
a4 {[%clk 0:00:05.2]} 36... Qa2# {[%clk 0:00:13.3]} 0-1

[Event "*** Titled Tuesday Blitz"]
[Site "Chess.com"]
[Date "2020.04.14"]
[Round "2"]
[White "Qingdom"]
[Black "MrChessSponge"]
[Result "1/2-1/2"]
[WhiteElo "2114"]
[BlackElo "2392"]
[TimeControl "180+1"]
[EndTime "10:17:46 PDT"]
[Termination "Game drawn by repetition"]

1. d4 {[%clk 0:03:00.9]} 1... Nf6 {[%clk 0:02:58.9]} 2. Bg5 {[%clk 0:03:00.8]}
2... d5 {[%clk 0:02:53.7]} 3. e3 {[%clk 0:03:00.1]} 3... c5 {[%clk 0:02:52.2]}
4. Nf3 {[%clk 0:02:52.5]} 4... Ne4 {[%clk 0:02:50.8]} 5. Bf4 {[%clk 0:02:52.5]}
5... Nc6 {[%clk 0:02:50.4]} 6. c3 {[%clk 0:02:50.9]} 6... a6 {[%clk 0:02:27.6]}
7. Nbd2 {[%clk 0:02:50.2]} 7... Bg4 {[%clk 0:02:23.7]} 8. h3 {[%clk 0:02:47.8]}
8... Bh5 {[%clk 0:02:23]} 9. Bd3 {[%clk 0:02:46.2]} 9... Bg6 {[%clk 0:02:06.8]}
10. Qc2 {[%clk 0:02:43.4]} 10... Nxd2 {[%clk 0:02:01.2]} 11. Qxd2 {[%clk
0:02:41.1]} 11... e6 {[%clk 0:01:59]} 12. Ne5 {[%clk 0:02:38]} 12... Nxe5 {[%clk
0:01:56.3]} 13. Bxe5 {[%clk 0:02:37.5]} 13... Bxd3 {[%clk 0:01:46]} 14. Qxd3
{[%clk 0:02:37.2]} 14... f6 {[%clk 0:01:43.2]} 15. Bg3 {[%clk 0:02:35.3]} 15...
Bd6 {[%clk 0:01:42.3]} 16. Bxd6 {[%clk 0:02:34.3]} 16... Qxd6 {[%clk 0:01:43.2]}
17. O-O {[%clk 0:02:30.7]} 17... O-O {[%clk 0:01:42.3]} 18. e4 {[%clk
0:02:30.4]} 18... Rad8 {[%clk 0:01:24.5]} 19. Rfe1 {[%clk 0:02:28.7]} 19... dxe4
{[%clk 0:01:18.1]} 20. Qxe4 {[%clk 0:02:28.8]} 20... cxd4 {[%clk 0:01:17.2]} 21.
cxd4 {[%clk 0:02:28.6]} 21... Qxd4 {[%clk 0:01:10.3]} 22. Qxe6+ {[%clk
0:02:27.7]} 22... Kh8 {[%clk 0:00:47.1]} 23. b3 {[%clk 0:02:22.6]} 23... Qd7
{[%clk 0:00:43.2]} 24. Rac1 {[%clk 0:02:16.7]} 24... Qxe6 {[%clk 0:00:33.4]} 25.
Rxe6 {[%clk 0:02:16.5]} 25... Rf7 {[%clk 0:00:33.6]} 26. Kf1 {[%clk 0:02:15.6]}
26... h6 {[%clk 0:00:32.5]} 27. Ke2 {[%clk 0:02:15.4]} 27... Rfd7 {[%clk
0:00:32]} 28. Rc2 {[%clk 0:02:13.4]} 28... Kg8 {[%clk 0:00:31.7]} 29. Re4 {[%clk
0:02:07.5]} 29... Kf7 {[%clk 0:00:31.5]} 30. Rec4 {[%clk 0:02:07.7]} 30... g5
{[%clk 0:00:30.2]} 31. g4 {[%clk 0:02:06.8]} 31... Kg6 {[%clk 0:00:29.9]} 32. f4
{[%clk 0:02:04.5]} 32... Re8+ {[%clk 0:00:29.6]} 33. Kf2 {[%clk 0:01:59.9]}
33... gxf4 {[%clk 0:00:27.2]} 34. Rxf4 {[%clk 0:01:58.8]} 34... Rd3 {[%clk
0:00:26.5]} 35. Rf3 {[%clk 0:01:58.8]} 35... Rd1 {[%clk 0:00:24.6]} 36. Kg2
{[%clk 0:01:55.2]} 36... Ree1 {[%clk 0:00:22.9]} 37. Rfc3 {[%clk 0:01:42.4]}
37... Rg1+ {[%clk 0:00:21.7]} 38. Kf3 {[%clk 0:01:42]} 38... Rdf1+ {[%clk
0:00:21.7]} 39. Ke4 {[%clk 0:01:41.8]} 39... Re1+ {[%clk 0:00:20]} 40. Kd5
{[%clk 0:01:41.2]} 40... Re5+ {[%clk 0:00:19.8]} 41. Kd6 {[%clk 0:01:40.6]}
41... Rd1+ {[%clk 0:00:19.6]} 42. Kc7 {[%clk 0:01:40.2]} 42... Re7+ {[%clk
0:00:19.4]} 43. Kb6 {[%clk 0:01:38.3]} 43... Rd6+ {[%clk 0:00:18.7]} 44. Ka5
{[%clk 0:01:35.1]} 44... Re5+ {[%clk 0:00:17.9]} 45. Ka4 {[%clk 0:01:27]} 45...
Rd4+ {[%clk 0:00:17.9]} 46. b4 {[%clk 0:01:19.8]} 46... a5 {[%clk 0:00:13.3]}
47. a3 {[%clk 0:01:12.6]} 47... h5 {[%clk 0:00:12.9]} 48. gxh5+ {[%clk
0:01:09.7]} 48... Rxh5 {[%clk 0:00:12.9]} 49. Rg3+ {[%clk 0:01:05.9]} 49... Kh6
{[%clk 0:00:12.4]} 50. Rcg2 {[%clk 0:01:04.9]} 50... axb4 {[%clk 0:00:12.3]} 51.
Rg6+ {[%clk 0:00:59.5]} 51... Kh7 {[%clk 0:00:12.5]} 52. Rg7+ {[%clk 0:00:59.4]}
52... Kh8 {[%clk 0:00:12.8]} 53. Rg8+ {[%clk 0:00:42]} 53... Kh7 {[%clk
0:00:12.5]} 54. R2g7+ {[%clk 0:00:41.7]} 54... Kh6 {[%clk 0:00:12.2]} 55. Rg6+
{[%clk 0:00:35.9]} 55... Kh7 {[%clk 0:00:12.4]} 56. R6g7+ {[%clk 0:00:36.3]}
56... Kh6 {[%clk 0:00:12.2]} 57. Rg6+ {[%clk 0:00:36.7]} 57... Kh7 {[%clk
0:00:12.4]} 58. R6g7+ {[%clk 0:00:37.2]} 1/2-1/2